fUST/lending_fUST_20240124
["ID","MTS","AMOUNT","RATE_DAILY","PERIOD"]
[312609975,1706081436764,-500.0,0.00040273,7]
[312609976,1706081436773,-9457.52,0.00040273,7]
[312609977,1706081436782,-500.0,0.00040273,7]
[312609978,1706081436791,-500.0,0.00040273,7]
[312609979,1706081436800,-500.0,0.00040273,7]
[312609980,1706081436809,-1292.5,0.00040273,7]
[312609981,1706081436818,-500.0,0.00040273,7]
[312609982,1706081436828,-500.0,0.00040273,7]
[312609983,1706081436837,-500.0,0.00040273,7]
[312609984,1706081436846,-1366.43,0.00040273,7]
[312609985,1706081436855,-618.76,0.00040273,7]
[312609986,1706081436864,-500.0,0.00040273,7]
[312609987,1706081436874,-500.0,0.00040273,7]
[312609988,1706081436883,-180379.51935568,0.00040447,2]
[312609989,1706081436899,-946.77486555,0.00040447,2]
[312610034,1706081438524,-1135.59381546,0.0003999,3]
[312610038,1706081438545,-1337.09298535,0.0003999,3]
[312610040,1706081438557,-1137.91319919,0.0003999,3]
[312610042,1706081438566,-187.4472171,0.00040447,2]
[312610050,1706081438640,-25747.00970819,0.00040447,2]
[312610052,1706081438650,-155.01033974,0.00040544,4]
[312610054,1706081438659,-2168.63801691,0.00040545,3]
[312610056,1706081438668,-156.57671244,0.00040545,4]
[312610058,1706081438677,-2078.78188438,0.00040545,4]
[312610059,1706081438686,-244.98815848,0.00040545,4]
[312610061,1706081438695,-233.48827563,0.00040546,31]
[312610062,1706081438704,-167.35732658,0.00040546,31]
[312610063,1706081438713,-187.54255065,0.00040546,31]
[312610065,1706081438722,-500.0,0.00040547,7]
[312610067,1706081438731,-446.1481912,0.00040547,7]
[312610068,1706081438742,-500.0,0.00040547,7]
[312610069,1706081438752,-500.0,0.00040547,7]
[312610070,1706081438762,-500.0,0.00040547,7]
[312610071,1706081438771,-500.0,0.00040547,7]
[312610072,1706081438780,-500.0,0.00040547,7]
[312610073,1706081438789,-500.0,0.00040547,7]
[312610074,1706081438798,-500.0,0.00040547,7]
[312610075,1706081438808,-500.0,0.00040547,7]
[312610076,1706081438817,-500.0,0.00040547,7]
[312610077,1706081438826,-500.0,0.00040547,7]
[312610078,1706081438835,-500.0,0.00040547,7]
[312610079,1706081438844,-500.0,0.00040547,7]
[312610080,1706081438854,-559.84,0.00040547,7]
[312610081,1706081438863,-500.0,0.00040547,7]
[312610082,1706081438872,-500.0,0.00040547,7]
[312610083,1706081438882,-1000.0,0.00040547,2]
[312610084,1706081438891,-2232.53,0.00040547,7]
[312610085,1706081438900,-500.0,0.00040547,7]
[312610086,1706081438910,-500.0,0.00040547,7]
[312610087,1706081438919,-500.0,0.00040547,7]
[312610088,1706081438928,-500.0,0.00040547,7]
[312610089,1706081438937,-500.0,0.00040547,7]
[312610090,1706081438947,-500.0,0.00040547,7]
[312610091,1706081438958,-630.9,0.00040547,7]
[312610092,1706081438967,-500.0,0.00040547,7]
[312610093,1706081438976,-500.0,0.00040547,7]
[312610094,1706081438985,-500.0,0.00040547,7]
[312610095,1706081438995,-982.04,0.00040547,7]
[312610096,1706081439006,-565.6,0.00040547,7]
[312610097,1706081439015,-500.0,0.00040547,7]
[312610098,1706081439024,-500.0,0.00040547,7]
[312610099,1706081439034,-1318.88,0.00040547,7]
[312610100,1706081439043,-610.76,0.00040547,7]
[312610101,1706081439052,-500.0,0.00040547,7]
[312610102,1706081439062,-500.0,0.00040547,7]
[312610103,1706081439070,-500.0,0.00040547,7]
[312610104,1706081439080,-500.0,0.00040547,7]
[312610105,1706081439089,-1522.6,0.00040547,7]
[312610106,1706081439099,-500.0,0.00040547,7]
[312610107,1706081439108,-500.0,0.00040547,7]
[312610108,1706081439117,-1006.02,0.00040547,7]
[312610109,1706081439127,-1173.95,0.00040547,7]
[312610110,1706081439136,-500.0,0.00040547,7]
[312610111,1706081439146,-685.6,0.00040547,7]
[312610112,1706081439155,-502.08,0.00040547,7]
[312610113,1706081439164,-500.0,0.00040547,7]
[312610114,1706081439173,-500.0,0.00040547,7]
[312610115,1706081439183,-1554.15,0.00040547,7]
[312610116,1706081439192,-500.0,0.00040547,7]
[312610117,1706081439202,-1270.56,0.00040547,7]
[312610118,1706081439212,-1165.34,0.00040547,7]
[312610119,1706081439222,-3608.18,0.00040547,7]
[312610120,1706081439231,-500.0,0.00040547,7]
[312610121,1706081439241,-500.0,0.00040547,7]
[312610122,1706081439250,-626.06,0.00040547,7]
[312610123,1706081439263,-500.0,0.00040547,7]
[312610124,1706081439272,-500.0,0.00040547,7]
[312610125,1706081439282,-503.21,0.00040547,7]
[312610126,1706081439291,-500.0,0.00040547,7]
[312610127,1706081439299,-9457.52,0.00040547,7]
[312610128,1706081439309,-500.0,0.00040547,7]
[312610129,1706081439318,-500.0,0.00040547,7]
[312610130,1706081439328,-500.0,0.00040547,7]
[312610131,1706081439340,-1292.5,0.00040547,7]
[312610132,1706081439351,-500.0,0.00040547,7]
[312610133,1706081439361,-500.0,0.00040547,7]
[312610134,1706081439370,-500.0,0.00040547,7]
[312610135,1706081439379,-1366.43,0.00040547,7]
[312610136,1706081439388,-618.76,0.00040547,7]
[312610137,1706081439397,-500.0,0.00040547,7]
[312610138,1706081439406,-500.0,0.00040547,7]
[312610139,1706081439415,-540.65672713,0.00040721,5]
[312610140,1706081439424,-500.0,0.00040821,31]
[312610141,1706081439434,-500.0,0.00040821,31]
[312610142,1706081439443,-500.0,0.00040821,31]
[312610143,1706081439452,-500.0,0.00040821,31]
[312610144,1706081439461,-500.0,0.00040821,31]
[312610145,1706081439471,-500.0,0.00040821,31]
[312610146,1706081439480,-551.28025436,0.00040821,31]
[312610147,1706081439489,-500.0,0.00040821,31]
[312610148,1706081439498,-500.0,0.00040821,31]
[312610149,1706081439510,-500.0,0.00040821,31]
[312610150,1706081439519,-500.0,0.00040821,31]
[312610151,1706081439528,-500.0,0.00040821,31]
[312610152,1706081439537,-500.0,0.00040821,31]
[312610153,1706081439546,-559.84,0.00040821,31]
[312610154,1706081439556,-500.0,0.00040821,31]
[312610155,1706081439565,-500.0,0.00040821,31]
[312610156,1706081439575,-1000.0,0.00040821,2]
[312610157,1706081439587,-2232.53,0.00040821,31]
[312610158,1706081439596,-500.0,0.00040821,31]
[312610159,1706081439608,-500.0,0.00040821,31]
[312610160,1706081439618,-545.64548194,0.00040821,20]
[312610161,1706081439629,-500.0,0.00040821,31]
[312610162,1706081439639,-500.0,0.00040821,31]
[312610163,1706081439649,-500.0,0.00040821,31]
[312610164,1706081439660,-630.9,0.00040821,31]
[312610165,1706081439669,-500.0,0.00040821,31]
[312610166,1706081439679,-500.0,0.00040821,31]
[312610167,1706081439689,-500.0,0.00040821,31]
[312610168,1706081439698,-982.04,0.00040821,31]
[312610169,1706081439707,-565.6,0.00040821,31]
[312610170,1706081439716,-500.0,0.00040821,31]
[312610171,1706081439725,-500.0,0.00040821,31]
[312610172,1706081439735,-1318.88,0.00040821,31]
[312610173,1706081439744,-500.0,0.00040821,31]
[312610174,1706081439755,-610.76,0.00040821,31]
[312610175,1706081439764,-500.0,0.00040821,31]
[312610176,1706081439773,-500.0,0.00040821,31]
[312610177,1706081439783,-500.0,0.00040821,31]
[312610178,1706081439792,-1522.6,0.00040821,31]
[312610179,1706081439802,-500.0,0.00040821,31]
[312610180,1706081439812,-500.0,0.00040821,31]
[312610181,1706081439821,-1006.02,0.00040821,31]
[312610182,1706081439831,-1173.95,0.00040821,31]
[312610183,1706081439840,-500.0,0.00040821,31]
[312610184,1706081439850,-685.6,0.00040821,31]
[312610185,1706081439859,-502.08,0.00040821,31]
[312610186,1706081439868,-500.0,0.00040821,31]
[312610187,1706081439879,-500.0,0.00040821,31]
[312610188,1706081439888,-1554.15,0.00040821,31]
[312610189,1706081439897,-500.0,0.00040821,31]
[312610190,1706081439906,-1270.56,0.00040821,31]
[312610191,1706081439916,-1165.34,0.00040821,31]
[312610192,1706081439926,-3608.18,0.00040821,31]
[312610193,1706081439935,-500.0,0.00040821,31]
[312610194,1706081439945,-500.0,0.00040821,31]
[312610195,1706081439954,-626.06,0.00040821,31]
[312610196,1706081439963,-500.0,0.00040821,31]
[312610197,1706081439973,-500.0,0.00040821,31]
[312610198,1706081439982,-503.21,0.00040821,31]
[312610199,1706081439991,-500.0,0.00040821,31]
[312610200,1706081440001,-9457.52,0.00040821,14]
[312610201,1706081440012,-500.0,0.00040821,31]
[312610202,1706081440021,-500.0,0.00040821,31]
[312610203,1706081440030,-500.0,0.00040821,31]
[312610204,1706081440039,-1292.5,0.00040821,31]
[312610205,1706081440048,-215.57059002,0.00040821,31]
[312610291,1706081443907,-1044.12,0.00039726,7]
[312610293,1706081443915,-613.83123696,0.0004,7]
[312610311,1706081446348,-430.28876304,0.0004,7]
[312610312,1706081446358,-1044.12,0.00040273,7]
[312610313,1706081446367,-364.34599587,0.00040446,31]
[312610314,1706081446376,-500.0,0.00040446,31]
[312610316,1706081446386,-353.92163804,0.00040446,31]
[312610317,1706081446395,-1044.12,0.00040547,7]
[312610318,1706081446404,-284.42940998,0.00040821,31]
[312610319,1706081446414,-500.0,0.00040821,31]
[312610320,1706081446423,-500.0,0.00040821,31]
[312610321,1706081446432,-1366.43,0.00040821,31]
[312610322,1706081446441,-618.76,0.00040821,31]
[312610323,1706081446451,-500.0,0.00040821,31]
[312610324,1706081446460,-340.45096392,0.00040821,31]
[312610325,1706081446469,-1044.12,0.00040821,31]
[312610326,1706081446477,-800.02611035,0.00041,2]
[312610327,1706081446486,-150.0,0.00041,10]
[312610328,1706081446496,-230.41467089,0.00041,120]
[312610329,1706081446505,-600.0,0.00041014,30]
[312610330,1706081446516,-243.65648428,0.00041093,4]
[312610331,1706081446526,-500.0,0.00041095,31]
[312610332,1706081446536,-500.0,0.00041095,31]
[312610333,1706081446545,-500.0,0.00041095,31]
[312610334,1706081446555,-500.0,0.00041095,2]
[312610335,1706081446565,-500.0,0.00041095,31]
[312610336,1706081446576,-152.38544019,0.00041095,31]
[312610337,1706081446586,-500.0,0.00041095,31]
[312610338,1706081446595,-500.0,0.00041095,31]
[312610339,1706081446604,-442.70834703,0.00041095,31]
[312610340,1706081446614,-500.0,0.00041095,31]
[312610341,1706081446624,-281.72692877,0.00041095,31]
[312610342,1706081446633,-500.0,0.00041095,31]
[312610343,1706081446643,-500.0,0.00041095,31]
[312610344,1706081446652,-559.84,0.00041095,31]
[312610345,1706081446663,-500.0,0.00041095,31]
[312610346,1706081446673,-500.0,0.00041095,31]
[312610347,1706081446683,-1000.0,0.00041095,2]
[312610348,1706081446692,-2232.53,0.00041095,31]
[312610349,1706081446701,-500.0,0.00041095,31]
[312610350,1706081446711,-500.0,0.00041095,31]
[312610351,1706081446720,-500.0,0.00041095,31]
[312610352,1706081446729,-500.0,0.00041095,31]
[312610353,1706081446738,-500.0,0.00041095,31]
[312610354,1706081446748,-630.9,0.00041095,31]
[312610355,1706081446760,-500.0,0.00041095,31]
[312610356,1706081446770,-500.0,0.00041095,31]
[312610357,1706081446780,-500.0,0.00041095,31]
[312610358,1706081446789,-982.04,0.00041095,31]
[312610359,1706081446798,-565.6,0.00041095,31]
[312610360,1706081446808,-500.0,0.00041095,31]
[312610361,1706081446817,-500.0,0.00041095,31]
[312610362,1706081446826,-500.0,0.00041095,31]
[312610363,1706081446836,-610.76,0.00041095,31]
[312610364,1706081446845,-500.0,0.00041095,31]
[312610365,1706081446855,-500.0,0.00041095,31]
[312610366,1706081446864,-500.0,0.00041095,31]
[312610367,1706081446874,-500.0,0.00041095,31]
[312610368,1706081446883,-1522.6,0.00041095,31]
[312610369,1706081446893,-500.0,0.00041095,31]
[312610370,1706081446904,-1006.02,0.00041095,31]
[312610371,1706081446913,-1173.95,0.00041095,31]
[312610372,1706081446923,-500.0,0.00041095,31]
[312610373,1706081446933,-685.6,0.00041095,31]
[312610374,1706081446942,-502.08,0.00041095,31]
[312610375,1706081446951,-500.0,0.00041095,31]
[312610376,1706081446960,-500.0,0.00041095,31]
[312610377,1706081446969,-1554.15,0.00041095,31]
[312610378,1706081446978,-500.0,0.00041095,31]
[312610379,1706081446987,-1270.56,0.00041095,31]
[312610380,1706081446996,-1165.34,0.00041095,31]
[312610381,1706081447005,-3608.18,0.00041095,31]
[312610382,1706081447015,-500.0,0.00041095,31]
[312610383,1706081447023,-553.10356473,0.00041095,31]
[312610384,1706081447032,-626.06,0.00041095,31]
[312610385,1706081447041,-500.0,0.00041095,31]
[312610386,1706081447050,-500.0,0.00041095,31]
[312610387,1706081447058,-503.21,0.00041095,31]
[312610388,1706081447067,-500.0,0.00041095,31]
[312610389,1706081447076,-9457.52,0.00041095,14]
[312610390,1706081447085,-500.0,0.00041095,31]
[312610391,1706081447094,-500.0,0.00041095,31]
[312610392,1706081447102,-500.0,0.00041095,31]
[312610393,1706081447111,-1292.5,0.00041095,31]
[312610394,1706081447120,-500.0,0.00041095,31]
[312610395,1706081447129,-500.0,0.00041095,31]
[312610396,1706081447138,-500.0,0.00041095,31]
[312610397,1706081447147,-1366.43,0.00041095,31]
[312610398,1706081447156,-618.76,0.00041095,31]
[312610399,1706081447165,-500.0,0.00041095,31]
[312610400,1706081447174,-1044.12,0.00041095,31]
[312610401,1706081447182,-155.77471169,0.00041232,4]
[312610402,1706081447191,-161.46927527,0.00041232,4]
[312610403,1706081447200,-279.4781529,0.00041232,4]
[312610404,1706081447209,-2404.18662849,0.00041232,4]
[312610405,1706081447218,-155.19083543,0.00041232,4]
[312610406,1706081447325,-659.79009548,0.00041232,4]
[312610407,1706081447334,-1270.04610972,0.00041232,4]
[312610408,1706081447343,-464.67563146,0.00041232,10]
[312610409,1706081447352,-488.99485773,0.00041232,4]
[312610410,1706081447361,-7960.18375069,0.00041232,2]
[312610411,1706081447370,-1025.83610794,0.00041233,4]
[312610412,1706081447379,-23.73208289,0.00041233,4]
[312610432,1706082427113,-449.39938875,0.00029978,2]
[312610455,1706082634072,-5404.99554475,0.00029971,2]
[312610457,1706082634081,-5210.1860001,0.00029972,2]
[312610460,1706082634091,-154.87609912,0.00029978,7]
[312610461,1706082634101,-279.79758913,0.00029978,2]
[312610462,1706082634110,-619.599095,0.00029999,2]
[312610463,1706082634120,-785.89348501,0.0003,4]
[312610464,1706082634129,-2371.98806335,0.00032999,2]
[312610465,1706082634138,-500.0,0.00033,7]
[312610466,1706082634147,-500.0,0.00034,7]
[312610467,1706082634157,-500.0,0.00035,7]
[312610468,1706082634167,-1818.32546,0.00039263,2]
[312610469,1706082634177,-500.0,0.00039726,7]
[312610470,1706082634186,-1000.0,0.00039726,2]
[312610471,1706082634195,-500.0,0.00039726,7]
[312610472,1706082634205,-500.0,0.00039726,7]
[312610473,1706082634214,-500.0,0.00039726,7]
[312610474,1706082634223,-500.0,0.00039726,7]
[312610475,1706082634233,-500.0,0.00039726,7]
[312610476,1706082634243,-500.0,0.00039726,7]
[312610477,1706082634254,-500.0,0.00039726,7]
[312610478,1706082634263,-500.0,0.00039726,7]
[312610479,1706082634272,-500.0,0.00039726,7]
[312610480,1706082634282,-500.0,0.00039726,7]
[312610481,1706082634291,-1674.4,0.00039726,7]
[312610482,1706082634301,-500.0,0.00039726,7]
[312610483,1706082634309,-500.0,0.00039726,7]
[312610484,1706082634319,-500.0,0.00039726,7]
[312610485,1706082634329,-500.0,0.00039726,7]
[312610486,1706082634339,-500.0,0.00039726,7]
[312610487,1706082634349,-500.0,0.00039726,7]
[312610488,1706082634359,-500.0,0.00039726,7]
[312610489,1706082634369,-500.0,0.00039726,7]
[312610490,1706082634378,-500.0,0.00039726,7]
[312610491,1706082634388,-500.0,0.00039726,7]
[312610492,1706082634397,-500.0,0.00039726,7]
[312610493,1706082634406,-500.0,0.00039726,7]
[312610494,1706082634415,-500.0,0.00039726,7]
[312610495,1706082634425,-783.09,0.00039726,7]
[312610496,1706082634434,-736.53,0.00039726,7]
[312610497,1706082634445,-1141.95,0.00039726,7]
[312610498,1706082634455,-500.0,0.00039726,7]
[312610499,1706082634464,-500.0,0.00039726,7]
[312610500,1706082634473,-1984.18,0.00039726,7]
[312610501,1706082634483,-500.0,0.00039726,7]
[312610502,1706082634493,-514.2,0.00039726,7]
[312610503,1706082634504,-500.0,0.00039726,7]
[312610504,1706082634513,-500.0,0.00039726,7]
[312610505,1706082634522,-500.0,0.00039726,7]
[312610506,1706082634532,-500.0,0.00039726,7]
[312610507,1706082634541,-754.51,0.00039726,7]
[312610508,1706082634551,-880.47,0.00039726,7]
[312610509,1706082634560,-500.0,0.00039726,7]
[312610510,1706082634570,-500.0,0.00039726,7]
[312610511,1706082634580,-500.0,0.00039726,7]
[312610512,1706082634589,-500.0,0.00039726,7]
[312610513,1706082634598,-952.92,0.00039726,7]
[312610514,1706082634608,-1165.62,0.00039726,7]
[312610515,1706082634617,-500.0,0.00039726,7]
[312610516,1706082634627,-500.0,0.00039726,7]
[312610517,1706082634637,-500.0,0.00039726,7]
[312610518,1706082634646,-500.0,0.00039726,7]
[312610519,1706082634656,-500.0,0.00039726,7]
[312610520,1706082634665,-2706.14,0.00039726,7]
[312610521,1706082634674,-874.0,0.00039726,7]
[312610522,1706082634683,-500.0,0.00039726,7]
[312610523,1706082634692,-500.0,0.00039726,7]
[312610524,1706082634702,-500.0,0.00039726,7]
[312610525,1706082634711,-969.38,0.00039726,7]
[312610526,1706082634720,-7093.14,0.00039726,7]
[312610527,1706082634730,-206.18242877,0.00039726,7]
[312610528,1706082634739,-1024.82,0.00039726,7]
[312610529,1706082634748,-500.0,0.00039726,7]
[312610530,1706082634758,-500.0,0.00039726,7]
[312610531,1706082634767,-500.0,0.00039726,7]
[312610532,1706082634776,-500.0,0.00039726,7]
[312610533,1706082634785,-500.0,0.00039726,7]
[312610534,1706082634795,-500.0,0.00039726,7]
[312610535,1706082634805,-1869.45,0.0003977,3]
[312610536,1706082634815,-1557.87,0.0003977,3]
[312610537,1706082634824,-2692.01,0.0003978,3]
[312610538,1706082634835,-2243.34,0.0003978,3]
[312610539,1706082634845,-3230.41,0.0003979,3]
[312610540,1706082634855,-2412.83410035,0.000398,10]
[312610541,1706082634865,-15116.04200158,0.000398,2]
[312610542,1706082634875,-152.69,0.00039899,2]
[312610543,1706082634885,-152.69,0.00039899,2]
[312610544,1706082634894,-152.69,0.00039899,2]
[312610545,1706082634904,-152.69,0.00039899,2]
[312610546,1706082634913,-152.69,0.00039899,2]
[312610547,1706082634923,-152.69,0.00039899,2]
[312610548,1706082634932,-152.69,0.00039899,2]
[312610549,1706082634944,-319999.00000093,0.000399,3]
[312610550,1706082634953,-353.71691152,0.0004,7]
[312610551,1706082634963,-1000.0,0.0004,2]
[312610552,1706082634974,-500.0,0.0004,7]
[312610553,1706082634984,-500.0,0.0004,7]
[312610554,1706082634993,-500.0,0.0004,7]
[312610555,1706082635003,-500.0,0.0004,7]
[312610556,1706082635012,-500.0,0.0004,7]
[312610557,1706082635026,-500.0,0.0004,7]
[312610558,1706082635037,-500.0,0.0004,7]
[312610559,1706082635047,-500.0,0.0004,7]
[312610560,1706082635057,-500.0,0.0004,7]
[312610561,1706082635066,-500.0,0.0004,7]
[312610562,1706082635076,-1674.4,0.0004,7]
[312610563,1706082635086,-500.0,0.0004,7]
[312610564,1706082635095,-500.0,0.0004,7]
[312610565,1706082635105,-500.0,0.0004,7]
[312610566,1706082635115,-500.0,0.0004,7]
[312610567,1706082635125,-500.0,0.0004,7]
[312610568,1706082635135,-500.0,0.0004,7]
[312610569,1706082635144,-500.0,0.0004,7]
[312610570,1706082635154,-500.0,0.0004,7]
[312610571,1706082635163,-500.0,0.0004,7]
[312610572,1706082635173,-500.0,0.0004,7]
[312610573,1706082635182,-500.0,0.0004,7]
[312610574,1706082635191,-500.0,0.0004,7]
[312610575,1706082635201,-500.0,0.0004,7]
[312610576,1706082635213,-783.09,0.0004,7]
[312610577,1706082635223,-736.53,0.0004,7]
[312610578,1706082635232,-1141.95,0.0004,7]
[312610579,1706082635242,-500.0,0.0004,7]
[312610580,1706082635253,-500.0,0.0004,7]
[312610581,1706082635262,-1984.18,0.0004,7]
[312610582,1706082635272,-500.0,0.0004,7]
[312610583,1706082635282,-514.2,0.0004,7]
[312610584,1706082635291,-500.0,0.0004,7]
[312610585,1706082635301,-500.0,0.0004,7]
[312610586,1706082635310,-500.0,0.0004,7]
[312610587,1706082635320,-500.0,0.0004,7]
[312610588,1706082635329,-754.51,0.0004,7]
[312610589,1706082635338,-880.47,0.0004,7]
[312610590,1706082635348,-500.0,0.0004,7]
[312610591,1706082635357,-500.0,0.0004,7]
[312610592,1706082635367,-500.0,0.0004,7]
[312610593,1706082635376,-500.0,0.0004,7]
[312610594,1706082635385,-952.92,0.0004,7]
[312610595,1706082635395,-1165.62,0.0004,7]
[312610596,1706082635405,-500.0,0.0004,7]
[312610597,1706082635414,-413.20752175,0.0004,7]
[312610598,1706082635423,-500.0,0.0004,7]
[312610599,1706082635433,-500.0,0.0004,7]
[312610600,1706082635443,-2706.14,0.0004,7]
[312610601,1706082635452,-500.0,0.0004,7]
[312610602,1706082635462,-874.0,0.0004,7]
[312610603,1706082635471,-500.0,0.0004,7]
[312610604,1706082635481,-500.0,0.0004,7]
[312610605,1706082635490,-500.0,0.0004,7]
[312610606,1706082635500,-969.38,0.0004,7]
[312610607,1706082635510,-7093.14,0.0004,7]
[312610608,1706082635520,-1024.82,0.0004,7]
[312610609,1706082635530,-500.0,0.0004,7]
[312610610,1706082635539,-228.98282117,0.0004,7]
[312610611,1706082635548,-500.0,0.0004,7]
[312610612,1706082635558,-500.0,0.0004,7]
[312610613,1706082635567,-500.0,0.0004,7]
[312610614,1706082635577,-500.0,0.0004,7]
[312610615,1706082635586,-600.0,0.0004,30]
[312610616,1706082635595,-1000.0,0.00040273,2]
[312610617,1706082635605,-394.0966716,0.00040273,7]
[312610618,1706082635614,-521.69094174,0.00040273,7]
[312610619,1706082635624,-500.0,0.00040273,7]
[312610620,1706082635633,-500.0,0.00040273,7]
[312610621,1706082635643,-554.37599903,0.00040273,7]
[312610622,1706082635652,-500.0,0.00040273,7]
[312610623,1706082635661,-500.0,0.00040273,7]
[312610624,1706082635670,-500.0,0.00040273,7]
[312610625,1706082635680,-500.0,0.00040273,7]
[312610626,1706082635689,-500.0,0.00040273,7]
[312610627,1706082635699,-1674.4,0.00040273,7]
[312610628,1706082635708,-500.0,0.00040273,7]
[312610629,1706082635718,-500.0,0.00040273,7]
[312610630,1706082635727,-500.0,0.00040273,7]
[312610631,1706082635736,-500.0,0.00040273,7]
[312610632,1706082635746,-500.0,0.00040273,7]
[312610633,1706082635757,-500.0,0.00040273,7]
[312610634,1706082635766,-500.0,0.00040273,7]
[312610635,1706082635776,-500.0,0.00040273,7]
[312610636,1706082635786,-500.0,0.00040273,7]
[312610637,1706082635795,-500.0,0.00040273,7]
[312610638,1706082635804,-500.0,0.00040273,7]
[312610639,1706082635813,-500.0,0.00040273,7]
[312610640,1706082635823,-500.0,0.00040273,7]
[312610641,1706082635833,-783.09,0.00040273,7]
[312610642,1706082635842,-736.53,0.00040273,7]
[312610643,1706082635851,-1141.95,0.00040273,7]
[312610644,1706082635861,-500.0,0.00040273,7]
[312610645,1706082635870,-500.0,0.00040273,7]
[312610646,1706082635879,-1984.18,0.00040273,7]
[312610647,1706082635889,-500.0,0.00040273,7]
[312610648,1706082635898,-514.2,0.00040273,7]
[312610649,1706082635907,-500.0,0.00040273,7]
[312610650,1706082636036,-500.0,0.00040273,7]
[312610651,1706082636046,-500.0,0.00040273,7]
[312610652,1706082636055,-500.0,0.00040273,7]
[312610653,1706082636065,-754.51,0.00040273,7]
[312610654,1706082636074,-880.47,0.00040273,7]
[312610655,1706082636084,-500.0,0.00040273,7]
[312610656,1706082636093,-500.0,0.00040273,7]
[312610657,1706082636103,-500.0,0.00040273,7]
[312610658,1706082636112,-500.0,0.00040273,7]
[312610659,1706082636123,-952.92,0.00040273,7]
[312610660,1706082636132,-1165.62,0.00040273,7]
[312610661,1706082636142,-500.0,0.00040273,7]
[312610662,1706082636151,-500.0,0.00040273,7]
[312610663,1706082636161,-500.0,0.00040273,7]
[312610664,1706082636170,-2706.14,0.00040273,7]
[312610665,1706082636180,-500.0,0.00040273,7]
[312610666,1706082636189,-874.0,0.00040273,7]
[312610667,1706082636199,-500.0,0.00040273,7]
[312610668,1706082636208,-500.0,0.00040273,7]
[312610669,1706082636218,-199.8891212,0.00040273,7]
[312610670,1706082636229,-969.38,0.00040273,7]
[312610671,1706082636239,-7093.14,0.00040273,7]
[312610672,1706082636248,-1024.82,0.00040273,7]
[312610673,1706082636257,-500.0,0.00040273,7]
[312610674,1706082636266,-500.0,0.00040273,7]
[312610675,1706082636276,-500.0,0.00040273,7]
[312610676,1706082636285,-500.0,0.00040273,7]
[312610677,1706082636295,-500.0,0.00040273,7]
[312610678,1706082636304,-1000.0,0.00040547,2]
[312610679,1706082636314,-500.0,0.00040547,7]
[312610680,1706082636323,-500.0,0.00040547,7]
[312610681,1706082636334,-500.0,0.00040547,7]
[312610682,1706082636343,-500.0,0.00040547,7]
[312610683,1706082636354,-500.0,0.00040547,7]
[312610684,1706082636364,-500.0,0.00040547,7]
[312610685,1706082636373,-500.0,0.00040547,7]